bitfinex/quotes_SOLUSD_20250228
["timestamp","ask_amount","ask_price","bid_price","bid_amount"]
[1740707129919,17.9996,133.05,132.9,0.14216157]
[1740707130124,20.0,133.02,132.9,0.14216157]
[1740707130347,20.0,133.02,132.92,0.14216157]
[1740707130748,0.03,132.98,132.92,0.14216157]
[1740707130921,0.03,132.98,132.9,0.14216157]
[1740707131125,0.03,132.98,132.91,1.57882794]
[1740707131329,0.03,132.98,132.89,27.5247]
[1740707131330,0.03,132.98,132.88,0.14216157]
[1740707131636,0.03,132.98,132.86,1.57938014]
[1740707131845,0.03,132.98,132.86,9.10588014]
[1740707132050,0.03,132.98,132.86,1.57938014]
[1740707132226,0.03,132.98,132.85,126.94]
[1740707132428,0.03,132.98,132.85,128.51970639]
[1740707132627,0.03,132.98,132.85,136.04680639]
[1740707132836,0.03,132.98,132.86,0.14216157]
[1740707133153,0.03,132.98,132.86,1.72166036]
[1740707133533,20.03,132.98,132.87,0.14216157]
[1740707133721,20.03,132.98,132.86,1.57973372]
[1740707133958,20.03,132.98,132.85,126.94]
[1740707134542,0.14216157,132.97,132.85,126.94]
[1740707135239,0.14216157,132.97,132.8,12.9661]
[1740707135444,20.0,132.93,132.8,12.9661]
[1740707135625,20.0,132.91,132.79,1.58039945]
[1740707135824,20.0,132.91,132.77,128.44067208]
[1740707135825,20.14216157,132.9,132.77,128.44067208]
[1740707136025,33.56216157,132.9,132.72,13.44]
[1740707136254,33.56216157,132.9,132.71,13.24100216]
[1740707136469,0.14216157,132.85,132.71,11.65980985]
[1740707137556,20.0,132.81,132.71,11.65980985]
[1740707137749,20.0,132.81,132.69,126.86]
[1740707138051,20.0,132.81,132.69,128.44173937]
[1740707138259,4.5167,132.84,132.69,135.97763937]
[1740707138442,24.5167,132.84,132.7,0.14216157]
[1740707138642,4.5163,132.85,132.72,0.14216157]
[1740707138847,4.5163,132.85,132.74,0.14216157]
[1740707139050,20.0,132.82,132.7,1.58117224]
[1740707139235,20.0,132.82,132.69,128.44153322]
[1740707139549,11.2887,132.88,132.69,135.97763322]
[1740707139733,4.5153,132.88,132.73,0.14216157]
[1740707139930,72.58410618,132.95,132.75,0.14216157]
[1740707140152,17.9346,132.9,132.77,0.14216157]
[1740707140370,4.5142,132.92,132.79,0.14216157]
[1740707140739,20.0,132.9,132.79,0.14216157]
[1740707140954,15.7991,132.92,132.77,1.58037439]
[1740707141156,15.7991,132.92,132.78,0.14216157]
[1740707141338,20.0,132.89,132.75,0.14216157]
[1740707141547,4.5153,132.88,132.77,0.14216157]
[1740707141754,20.14216157,132.87,132.75,0.14216157]
[1740707142052,20.0,132.87,132.76,1.58113122]
[1740707142371,4.5139,132.92,132.75,0.14216157]
[1740707142534,4.5139,132.92,132.77,0.14216157]
[1740707142732,4.5139,132.92,132.79,0.14216157]
[1740707143038,0.14216157,132.89,132.76,0.14216157]
[1740707143334,4.5133,132.94,132.78,0.14216157]
[1740707143539,6.453,132.95,132.82,0.14216157]
[1740707143747,20.0,132.92,132.84,0.14216157]
[1740707143948,20.0,132.92,132.83,1.57990769]
[1740707144148,4.5126,132.97,132.85,0.14216157]
[1740707144339,17.7219,132.98,132.87,0.14216157]
[1740707144755,0.03,132.98,132.88,1.57965867]
[1740707144960,0.03,132.98,132.89,0.14216157]
[1740707145138,0.03,132.98,132.9,1.57917122]
[1740707145344,0.03,132.98,132.86,0.14216157]
[1740707145551,0.03,132.98,132.88,0.14216157]
[1740707145867,11.2697,133.03,132.9,0.14216157]
[1740707146158,11.2697,133.03,132.92,0.14216157]
[1740707146588,4.5099,133.04,132.94,0.14216157]
[1740707146758,17.8161,133.1,132.94,0.14216157]
[1740707147065,4.5071,133.13,132.98,0.14216157]
[1740707147271,4.5071,133.13,133.0,0.14216157]
[1740707147444,20.0,133.11,133.02,0.14216157]
[1740707147765,0.14216157,133.1,132.97,13.04]
[1740707147965,4.5078,133.11,132.97,13.04]
[1740707148169,15.7766,133.11,132.97,13.04]
[1740707148471,0.14216157,133.07,132.97,13.04]
[1740707148776,0.14216157,133.07,132.93,126.9]
[1740707148943,20.0,133.04,132.93,126.9]
[1740707149148,20.0,133.04,132.94,1.57895649]
[1740707149667,66.13110618,133.15,132.95,0.14216157]
[1740707149865,66.13110618,133.15,132.97,0.14216157]
[1740707149866,13.0,133.11,132.97,0.14216157]
[1740707150043,4.5068,133.13,132.98,1.57800209]
[1740707150244,66.13110618,133.15,132.99,20.14216157]
[1740707150245,4.5065,133.15,132.99,20.14216157]
[1740707150443,4.5065,133.15,133.01,0.14216157]
[1740707150643,4.5065,133.15,133.03,0.14216157]
[1740707151075,4.5065,133.15,133.03,1.71979486]
[1740707151278,24.2323,133.19,133.01,0.14216157]
[1740707151471,20.0,133.14,133.03,0.14216157]
[1740707151773,0.14216157,133.13,133.0,1.57778323]
[1740707151973,0.14216157,133.13,133.01,0.14216157]
[1740707152153,0.14216157,133.13,132.99,26.1064]
[1740707152550,0.14216157,133.13,132.99,13.1464]
[1740707152759,0.14216157,133.13,132.97,1.57820075]
[1740707152969,4.5061,133.16,132.97,27.89960075]
[1740707153269,0.03,133.19,133.01,0.14216157]
[1740707153270,4.5054,133.18,133.01,0.14216157]
[1740707153453,4.5054,133.18,133.03,0.14216157]
[1740707153769,4.5054,133.18,133.05,0.14216157]
[1740707153970,0.03,133.19,133.04,1.57724869]
[1740707154269,0.14216157,133.16,133.03,1.57757323]
[1740707154472,0.14216157,133.16,133.02,12.94]
[1740707154675,0.17216157,133.12,132.96,14.47791387]
[1740707154850,0.17216157,133.12,132.96,21.99851387]
[1740707155045,20.0,133.09,132.96,1.57791387]
[1740707155365,0.14216157,133.08,132.94,1.57843105]
[1740707155556,20.0,133.09,132.94,9.10033105]
[1740707155968,20.0,133.09,132.98,0.14216157]
[1740707156169,20.0,133.09,132.98,1.57810739]
[1740707156754,20.0,133.09,132.95,1.57816201]
[1740707157352,20.14216157,133.08,132.95,1.57816201]
[1740707157553,20.14216157,133.08,132.94,1.5785168]
[1740707157773,33.02216157,133.08,132.93,126.9]
[1740707157981,0.14216157,133.03,132.9,1.57913032]
[1740707158559,0.14216157,133.03,132.91,0.14216157]
[1740707158779,0.14216157,133.03,132.9,1.57913032]
[1740707159075,0.14216157,133.03,132.85,12.3673]
[1740707159278,0.14216157,133.03,132.85,13.94699497]
[1740707159483,0.14216157,133.03,132.86,0.14216157]
[1740707159778,4.5089,133.07,132.88,0.14216157]
[1740707159978,4.5089,133.07,132.92,0.14216157]
[1740707160184,4.5089,133.07,132.94,0.14216157]
[1740707160367,20.0,133.05,132.94,0.14216157]
[1740707160566,0.14216157,133.04,132.94,0.14216157]
[1740707161077,4.5089,133.07,132.96,0.14216157]
[1740707161569,4.5075,133.11,132.96,1.72072896]
[1740707161760,15.7763,133.11,132.96,0.14216157]
[1740707162070,20.0,133.03,132.92,12.88]
[1740707162272,4.5092,133.06,132.93,1.57898548]
[1740707162477,0.14216157,133.05,132.92,12.88]
[1740707162685,0.14216157,133.05,132.9,9.10263417]
[1740707162864,0.14216157,133.02,132.87,1.57920805]
[1740707163268,20.0,132.98,132.85,126.78]
[1740707163473,0.14216157,132.97,132.83,3.67]
[1740707164180,32.88,132.98,132.83,3.67]
[1740707164181,0.14216157,132.92,132.83,3.67]
[1740707165088,20.14216157,132.88,132.8,0.063]
[1740707165283,0.14216157,132.83,132.8,0.063]
[1740707165786,0.14216157,132.83,132.69,0.063]
[1740707166201,12.82,132.87,132.71,0.14216157]
[1740707166360,17.3357,132.87,132.73,0.14216157]
[1740707166564,20.0,132.84,132.75,0.14216157]
[1740707166903,13.0796,132.97,132.77,20.14216157]
[1740707167066,13.0796,132.97,132.79,0.14216157]
[1740707167266,20.0,132.94,132.8,0.063]
[1740707167573,13.0796,132.97,132.81,0.14216157]
[1740707167769,6.9139,132.98,132.86,0.14216157]
[1740707167967,13.0829,133.03,132.88,0.14216157]
[1740707168197,20.0,133.0,132.9,0.14216157]
[1740707168495,17.5932,133.03,132.9,1.72156538]
[1740707168694,17.5932,133.03,132.89,7.5248]
[1740707168695,20.0,133.0,132.85,1.57921268]
[1740707169004,20.0,133.0,132.84,0.14216157]
[1740707169166,17.5932,133.03,132.86,20.14216157]
[1740707169363,17.5932,133.03,132.88,0.14216157]
[1740707169592,13.0829,133.03,132.9,0.14216157]
[1740707169797,11.2942,133.07,132.92,0.14216157]
[1740707169978,11.2942,133.07,132.93,0.14216157]
[1740707170182,6.7853,133.07,132.95,0.14216157]
[1740707170369,6.7853,133.07,132.97,0.14216157]
[1740707170570,12.5841,133.1,132.97,0.14216157]
[1740707170885,4.5068,133.13,132.99,0.14216157]
[1740707171205,19.2643,133.14,133.01,0.14216157]
[1740707171490,19.2643,133.14,133.03,0.14216157]
[1740707171491,46.54470315,133.1,133.03,0.14216157]
[1740707171667,46.54470315,133.1,133.05,0.14216157]
[1740707171867,46.54470315,133.1,133.07,0.14216157]
[1740707172467,46.54470315,133.1,133.06,0.14216157]
[1740707172673,46.54470315,133.1,133.09,0.14216157]
[1740707173093,46.54470315,133.1,133.09,20.14216157]
[1740707173271,39.61530315,133.1,133.09,21.71899134]
[1740707173777,0.03,133.19,133.09,20.14216157]
[1740707173976,0.03,133.19,133.09,0.14216157]
[1740707174298,0.03,133.19,133.04,1.57721533]
[1740707174470,20.0,133.13,133.03,14.29761972]
[1740707174670,0.17216157,133.12,133.03,12.72]
[1740707174896,0.03,133.12,133.04,1.5779809]
[1740707175075,0.03,133.12,133.05,0.14216157]
[1740707175394,0.03,133.12,133.07,0.14216157]
[1740707175592,0.03,133.12,133.03,12.72]
[1740707175800,0.17216157,133.12,133.0,1.5777716]
[1740707175971,20.17216157,133.12,132.99,12.741]
[1740707176181,20.03,133.12,133.02,1.57819128]
[1740707176476,20.03,133.12,133.03,0.14216157]
[1740707176675,0.03,133.12,133.04,1.57735108]
[1740707176878,0.03,133.12,133.01,128.39763103]
[1740707177498,24.67946157,133.12,133.01,126.82]
[1740707177686,35.94746157,133.12,133.01,126.82]
[1740707178199,24.67946157,133.12,133.01,126.82]
[1740707178407,24.67946157,133.12,133.02,0.14216157]
[1740707178572,0.03,133.12,133.04,0.14216157]
[1740707178987,0.03,133.12,133.06,0.14216157]
[1740707179296,0.03,133.12,133.01,134.3379]
[1740707179297,0.03,133.12,133.08,0.14216157]
[1740707179511,0.03,133.12,133.1,0.14216157]
[1740707179987,0.03,133.12,133.11,1.57685987]
[1740707180197,0.03,133.12,133.07,1.57683342]
[1740707180503,0.03,133.12,133.07,0.14216157]
[1740707180667,0.03,133.12,133.06,12.64]
[1740707180873,0.03,133.12,133.01,126.82]
[1740707181186,0.17216157,133.12,133.01,126.82]
[1740707181585,20.0,133.08,133.01,126.82]
[1740707182176,4.65136157,133.07,132.96,12.623]
[1740707182508,0.14216157,133.07,132.96,0.063]
[1740707182881,24.5085,133.08,132.98,0.14216157]
[1740707183083,20.0,133.08,132.99,1.57844181]
[1740707183292,20.0,133.08,132.96,0.063]
[1740707183293,0.14216157,133.07,132.96,0.063]
[1740707184204,20.14216157,133.02,132.96,0.063]
[1740707184397,24.65296157,133.02,132.96,0.063]
[1740707184702,24.65296157,133.02,132.85,140.77968142]
[1740707184703,0.14216157,132.97,132.85,139.2]
[1740707185002,20.14216157,132.97,132.85,126.7]
[1740707185178,20.14216157,132.97,132.86,1.58032141]
[1740707185179,20.0,132.97,132.86,1.58032141]
[1740707185377,6.5227,133.01,132.89,0.14216157]
[1740707185574,6.5227,133.01,132.91,0.14216157]
[1740707185772,6.5227,133.01,132.93,0.14216157]
[1740707186196,12.6,133.06,132.94,0.14216157]
[1740707186403,0.14216157,133.05,132.94,0.14216157]
[1740707186604,0.14216157,133.02,132.89,12.6]
[1740707186970,0.14216157,133.02,132.89,21.70428699]
[1740707187171,20.0,133.03,132.93,0.14216157]
[1740707187390,20.0,133.03,132.93,1.57894643]
[1740707187585,20.0,133.03,132.94,0.14216157]
[1740707188319,20.0,133.03,132.93,0.14216157]
[1740707188499,0.14216157,133.02,132.91,0.14216157]
[1740707188716,20.0,133.03,132.9,9.10330141]
[1740707188906,6.5455,133.08,132.93,20.0]
[1740707189115,6.5455,133.08,132.95,0.14216157]
[1740707189305,6.5455,133.08,132.97,0.14216157]
[1740707189503,6.5455,133.08,133.0,20.0]
[1740707189703,6.5455,133.08,133.01,0.14216157]
[1740707189938,6.5455,133.08,133.03,0.14216157]
[1740707190115,0.03,133.12,133.04,1.57761002]
[1740707190316,0.03,133.12,133.05,0.14216157]
[1740707190513,0.03,133.12,133.07,0.14216157]
[1740707190719,0.03,133.12,133.05,12.52]
[1740707191653,0.17216157,133.12,132.99,7.5192]
[1740707191929,0.14216157,133.1,132.95,7.5215]
[1740707192105,0.14216157,133.1,132.94,7.5849]
[1740707192608,0.14216157,133.1,132.95,7.5215]
[1740707192833,0.14216157,133.1,132.94,0.063]
[1740707193015,0.14216157,133.1,132.98,0.14216157]
[1740707193217,0.14216157,133.1,132.98,1.72060489]
[1740707193420,0.14216157,133.1,132.97,134.2603]
[1740707193607,20.14216157,133.1,132.97,126.74]
[1740707193802,20.0,133.1,132.98,1.57859079]
[1740707194139,0.03,133.12,133.01,0.14216157]
[1740707194313,0.03,133.12,133.05,0.14216157]
[1740707194517,0.03,133.12,133.02,0.14216157]
[1740707194716,0.17216157,133.12,133.02,7.65956157]
[1740707195011,0.03,133.12,133.02,9.23759292]
[1740707195859,0.03,133.12,133.06,0.14216157]
[1740707196145,0.03,133.12,133.07,1.57721801]
[1740707196662,0.03,133.12,133.04,7.5165]
[1740707197030,0.03,133.12,133.06,0.14216157]
[1740707197229,0.03,133.12,133.08,0.14216157]
[1740707197563,0.03,133.12,133.1,0.14216157]
[1740707197728,0.03,133.12,133.08,0.14216157]
[1740707197932,0.03,133.12,133.05,1.57732625]
[1740707198129,0.03,133.12,133.03,7.5169]
[1740707198332,0.17216157,133.12,133.01,12.48]
[1740707198558,0.17216157,133.12,133.01,19.9977]
[1740707198780,0.03,133.12,133.02,0.14216157]
[1740707199063,4.67936157,133.12,132.99,1.57793738]
[1740707199233,4.67936157,133.12,132.98,7.5198]
[1740707199437,0.17216157,133.12,132.98,7.5198]
[1740707199741,0.03,133.12,132.99,1.57836683]
[1740707199935,0.03,133.12,133.0,0.14216157]
[1740707200155,0.03,133.12,133.02,0.14216157]
[1740707200372,0.03,133.12,133.04,0.14216157]
[1740707200535,0.03,133.12,133.06,0.14216157]
[1740707200739,0.03,133.12,133.09,0.14216157]
[1740707200940,0.03,133.12,133.05,26.3058]
[1740707200941,0.03,133.12,133.1,1.57687216]
[1740707201142,0.03,133.12,133.11,1.71917181]
[1740707201677,0.03,133.12,133.08,126.66]
[1740707201678,0.03,133.12,133.08,128.23657244]
[1740707201834,0.03,133.12,133.07,0.14216157]
[1740707202044,0.03,133.12,133.05,7.5159]
[1740707202348,0.03,133.12,133.06,0.14216157]
[1740707202551,0.03,133.12,133.06,1.57748376]
[1740707202764,0.03,133.12,133.07,0.14216157]
[1740707202968,0.03,133.12,133.09,0.14216157]
[1740707203179,0.03,133.12,133.07,1.57742242]
[1740707203481,0.03,133.12,133.03,12.68]
[1740707203857,0.03,133.12,133.04,1.57757715]
[1740707204057,0.03,133.12,133.03,20.1968]
[1740707204259,0.03,133.12,133.03,12.68]
[1740707204479,20.0,133.1,133.0,126.66]
[1740707204656,6.6679,133.09,133.0,126.66]
[1740707204863,6.6679,133.09,133.01,1.57829569]
[1740707205063,6.6679,133.09,133.04,0.14216157]
[1740707205361,6.6679,133.09,133.06,0.14216157]
[1740707205567,6.6679,133.09,133.05,0.14216157]
[1740707205968,0.03,133.12,133.07,0.14216157]
[1740707206292,0.03,133.12,133.07,1.57736943]
[1740707206578,0.03,133.12,133.09,26.2979]
[1740707206788,0.03,133.12,133.11,20.14216157]
[1740707207151,6.3469,133.22,133.12,20.14216157]
[1740707207384,6.3469,133.22,133.14,0.14216157]
[1740707207581,6.3469,133.22,133.15,1.57631088]
[1740707207886,20.03,133.19,133.08,0.14216157]
[1740707208054,20.03,133.19,133.08,1.71923815]
[1740707208255,20.03,133.19,133.1,0.14216157]
[1740707208462,0.14216157,133.18,133.05,1.57690764]
[1740707208680,0.14216157,133.18,133.03,7.517]
[1740707208983,0.14216157,133.13,133.01,1.57690764]
[1740707209187,20.0,133.14,133.01,21.71510764]
[1740707209490,0.14216157,133.13,133.0,134.1787]
[1740707209783,20.0,133.09,133.0,126.66]
[1740707210092,20.0,133.09,133.0,128.23805086]
[1740707210265,20.0,133.09,133.0,135.75675086]
[1740707210472,6.3421,133.12,133.0,135.75675086]
[1740707210672,6.3421,133.12,133.01,0.14216157]
[1740707210865,6.3421,133.12,133.02,1.57782724]
[1740707211062,6.8153,133.2,133.05,0.14216157]
[1740707211287,6.8153,133.2,133.02,1.57782724]
[1740707211288,6.8153,133.2,133.1,0.14216157]
[1740707211494,6.8153,133.2,133.11,1.57660745]
[1740707211866,20.0,133.17,133.08,0.14216157]
[1740707212077,20.0,133.17,133.09,1.57707408]
[1740707212283,0.03,133.19,133.08,1.71914665]
[1740707212463,4.5348,133.19,133.04,1.57690842]
[1740707212680,20.14216157,133.16,133.05,0.14216157]
[1740707212894,20.0,133.16,133.04,9.09401794]
[1740707213300,4.5348,133.19,133.05,0.14216157]
[1740707213503,0.14216157,133.18,133.06,1.57714393]
[1740707213805,0.14216157,133.16,133.05,0.14216157]
[1740707213974,20.0,133.17,133.05,0.14216157]
[1740707214178,20.0,133.17,133.05,1.71962827]
[1740707214771,20.0,133.17,133.05,9.23532827]
[1740707214974,0.03,133.12,133.05,28.02522827]
[1740707215200,0.03,133.12,133.09,0.14216157]
[1740707215389,0.03,133.12,133.09,1.57654739]
[1740707215576,0.03,133.12,133.1,0.14216157]
[1740707215775,0.03,133.12,133.09,0.14216157]
[1740707216405,0.03,133.12,133.09,1.71924482]
[1740707217074,0.03,133.12,133.09,0.14216157]
[1740707217876,0.03,133.12,133.09,20.0]
[1740707218106,0.03,133.12,133.06,21.57711037]
[1740707218411,0.03,133.12,133.06,27.5153]
[1740707218712,0.03,133.12,133.07,0.14216157]
[1740707218904,0.03,133.12,133.09,0.14216157]
[1740707219603,0.03,133.12,133.07,0.14216157]
[1740707219805,0.03,133.12,133.07,20.0]
[1740707219999,0.03,133.12,133.07,21.57732794]
[1740707220206,0.03,133.12,133.07,20.0]
[1740707220506,0.03,133.12,133.07,1.57745085]
[1740707220701,0.03,133.12,133.06,9.09266794]
[1740707220903,0.03,133.12,133.05,19.9958]
[1740707221287,0.03,133.12,133.06,1.57757676]
[1740707221498,0.03,133.12,133.09,0.14216157]
[1740707221723,0.03,133.12,133.08,20.0]
[1740707221909,0.03,133.12,133.05,7.5158]
[1740707222515,0.03,133.12,132.98,18.7994]
[1740707222811,20.0,133.07,133.0,0.063]
[1740707223284,0.14216157,133.06,133.0,0.063]
[1740707223693,0.14216157,133.01,132.96,0.063]
[1740707224514,6.0199,133.05,132.96,9.16361975]
[1740707224692,6.0199,133.05,132.96,0.20516157]
[1740707224891,6.0199,133.05,132.98,0.14216157]
[1740707225214,12.0761,133.1,132.99,1.57821873]
[1740707225408,12.0761,133.1,132.97,1.72038555]
[1740707225619,6.2986,133.12,133.0,0.14216157]
[1740707225813,6.2986,133.12,133.02,0.14216157]
[1740707226021,6.2986,133.12,133.07,0.14216157]
[1740707226221,0.03,133.12,133.09,0.14216157]
[1740707226415,0.03,133.12,133.11,0.14216157]
[1740707226933,0.03,133.12,133.11,20.13466157]
[1740707227130,0.0001,133.12,133.11,20.13466157]
[1740707227433,7.58e-05,133.16,133.15,0.14216157]
[1740707227638,7.58e-05,133.16,133.15,1.71795743]
[1740707228134,0.03,133.19,133.15,1.71795743]
[1740707228604,0.03,133.19,133.14,20.0]
[1740707228808,0.03,133.19,133.11,12.48]
[1740707229040,0.03,133.19,133.09,1.57685709]
[1740707229219,0.03,133.19,133.12,20.0]
[1740707229736,0.03,133.19,133.13,0.14216157]
[1740707229912,0.03,133.19,133.13,1.71896657]
[1740707230407,0.0001,133.19,133.13,1.71896657]
[1740707230722,0.0001,133.19,133.14,3.71249931]
[1740707231024,0.0001,133.19,133.17,0.14216157]
[1740707231230,0.0001,133.19,133.18,1.71797584]
[1740707231423,0.0001,133.19,133.18,0.14216157]
[1740707231917,0.0001,133.19,133.18,1.71817147]
[1740707232934,0.0001,133.19,133.18,9.22677147]
[1740707233346,0.0001,133.19,133.18,7.5086]
[1740707233721,0.0001,133.19,133.17,126.58]
[1740707233941,22.4999622,133.23,133.17,126.58]
[1740707234143,0.14216157,133.22,133.15,12.4]
[1740707234340,14.4672622,133.23,133.15,20.0]
[1740707234648,2.4999622,133.23,133.16,0.14216157]
[1740707234943,2.4999622,133.23,133.15,27.5101]
[1740707235248,22.4999622,133.23,133.11,7.5125]
[1740707235437,2.4999622,133.23,133.13,0.14216157]
[1740707235641,2.4999622,133.23,133.15,0.14216157]
[1740707236152,2.4999622,133.23,133.15,1.7184866]
[1740707236342,2.4999622,133.23,133.12,1.57632802]
[1740707236641,0.14216157,133.22,133.11,7.5125]
[1740707236850,0.14216157,133.22,133.14,20.0]
[1740707237057,22.4999622,133.23,133.14,20.0]
[1740707237223,22.4999622,133.23,133.14,27.5105]
[1740707237425,0.14216157,133.22,133.11,7.5121]
[1740707237647,0.14216157,133.22,133.09,146.4532]
[1740707237834,20.0,133.2,133.1,1.57712951]
[1740707238029,2.4999622,133.23,133.12,20.0]
[1740707238350,0.14216157,133.22,133.09,165.2374]
[1740707238645,20.0,133.21,133.1,0.14216157]
[1740707238848,20.0,133.2,133.12,20.0]
[1740707239029,24.64716157,133.19,133.07,11.65980985]
[1740707239239,0.14216157,133.17,133.07,11.65980985]
[1740707239443,20.0,133.18,133.07,20.75178394]
[1740707239639,20.0,133.18,133.07,11.65980985]
[1740707239843,20.0,133.18,133.07,20.7520399]
[1740707240149,20.0,133.18,133.1,20.0]
[1740707240648,0.14216157,133.17,133.06,9.0925393]
[1740707240854,5.8568,133.16,133.05,25.53728027]
[1740707241046,5.8568,133.16,133.05,33.05322598]
[1740707241246,5.8568,133.16,133.08,20.0]
[1740707241547,5.8568,133.16,133.06,0.14216157]
[1740707241946,5.8568,133.16,133.05,33.05322598]
[1740707241947,0.14216157,133.15,133.05,12.3]
[1740707242139,0.14216157,133.15,133.04,138.21980985]
[1740707242345,20.0,133.13,133.04,138.21980985]
[1740707242935,0.14216157,133.15,133.04,145.73630985]
[1740707243257,5.8568,133.16,133.05,1.57769985]
[1740707243444,5.8568,133.16,133.06,0.14216157]
[1740707243625,5.8568,133.16,133.08,0.14216157]
[1740707244028,5.8568,133.16,133.08,1.71927094]
[1740707244281,5.8568,133.16,133.08,1.71931636]
[1740707244553,5.8568,133.16,133.09,0.14216157]
[1740707244750,5.8568,133.16,133.07,32.28]
[1740707245654,0.14216157,133.15,133.04,145.73620985]
[1740707245836,20.0,133.13,133.04,150.49980985]
[1740707246360,20.0,133.13,133.04,138.84]
[1740707246656,20.0,133.13,133.04,126.56]
[1740707247348,20.0,133.13,133.04,134.0763]
[1740707247964,20.14216157,133.12,133.04,126.56]
[1740707248981,86.27326775,133.12,132.98,23.93980985]
[1740707249147,0.14216157,133.1,132.98,31.45960985]
[1740707249350,0.14216157,133.1,132.98,19.17960985]
[1740707249543,5.7068,133.06,132.98,11.65980985]
[1740707249784,0.14216157,133.05,132.98,11.65980985]
[1740707249946,0.14216157,133.02,132.97,16.05002956]
[1740707250143,0.14216157,133.02,132.97,9.71922956]
[1740707250450,20.0,132.98,132.96,34.00269103]
[1740707250661,0.14216157,132.97,132.96,21.34099103]
[1740707250979,0.14216157,132.97,132.94,0.063]
[1740707251357,20.14216157,132.95,132.94,0.063]
[1740707253380,11.70161028,132.99,132.94,0.063]
[1740707254687,11.84377185,132.98,132.94,0.063]
[1740707254858,20.14216157,132.95,132.94,0.063]
[1740707255050,20.0,132.95,132.86,19.0982]
[1740707255474,0.14216157,132.94,132.86,11.5718]
[1740707255663,20.0,132.92,132.8,11.6348]
[1740707255866,20.0,132.92,132.81,1.58030036]
[1740707256083,20.0,132.92,132.82,0.14216157]
[1740707256457,20.0,132.92,132.83,20.063]
[1740707256769,11.64288892,132.93,132.85,0.14216157]
[1740707256956,11.64288892,132.93,132.86,1.57987187]
[1740707257156,11.64288892,132.91,132.88,0.14216157]
[1740707257363,11.64288892,132.91,132.9,20.14216157]
[1740707257895,46.80644112,133.02,132.91,20.14216157]
[1740707258097,46.80644112,133.02,132.93,0.14216157]
[1740707258265,46.80644112,133.02,132.91,20.0]
[1740707258666,0.14216157,133.01,132.91,20.0]
[1740707258873,46.80644112,132.95,132.92,1.72130928]
[1740707259093,46.80644112,132.95,132.88,146.5254]
[1740707259298,46.80644112,132.95,132.9,12.3524]
[1740707259483,1.85e-05,132.95,132.91,1.57875838]
[1740707259784,37.99569971,133.1,132.91,1.57875838]
[1740707259785,10.32082026,133.06,132.91,1.57875838]
[1740707260664,1.72130928,133.05,132.91,1.57875838]
[1740707260859,20.0,133.03,132.91,1.57875838]
[1740707261060,1.72130928,133.02,132.91,1.57875838]
[1740707261284,1.72130928,133.02,132.9,12.3524]
[1740707261481,0.14216157,132.98,132.9,12.3524]
[1740707261678,0.14216157,132.98,132.88,139.0]
[1740707261679,1.72130928,132.98,132.88,139.0]
[1740707262491,66.13110618,133.03,132.9,0.063]
[1740707262799,0.03,132.96,132.9,0.063]
[1740707263502,1.75130928,132.96,132.9,0.063]
[1740707264010,14.03130928,132.96,132.9,0.063]
[1740707264305,0.14216157,132.94,132.9,0.063]
[1740707264476,0.14216157,132.91,132.78,0.18077344]
[1740707264797,2.11776805,132.91,132.8,20.0]
[1740707265097,0.14216157,132.89,132.81,20.0]
[1740707265295,0.14216157,132.89,132.78,8.50347742]
[1740707265597,1.97582342,132.91,132.78,8.50347742]
[1740707265786,5.11843581,132.9,132.79,0.14216157]
[1740707265974,5.11843581,132.9,132.81,20.0]
[1740707266176,5.11843581,132.9,132.81,20.79076076]
[1740707266369,2.11753529,132.89,132.78,0.18077344]
[1740707266570,2.11753529,132.89,132.77,134.2716]
[1740707266980,2.11753529,132.89,132.77,126.74]
[1740707266981,20.14216157,132.86,132.77,126.74]
[1740707267186,0.14216157,132.84,132.77,126.74]
[1740707267471,0.14216157,132.84,132.76,0.063]